[Event "DPMM 2023-24"]
[Site "Germany"]
[Date "2024.01.28"]
[Round "20.4"]
[White "Pietzsch, Manuel"]
[Black "Eichstaedt, Axel"]
[Result "1-0"]
[ECO "B01"]
[WhiteElo "2055"]
[BlackElo "1883"]
[PlyCount "25"]
[EventDate "2024.03.14"]
[EventType "team-tourn"]
[EventCountry "GER"]
[TimeControl "40/6000:20/3000:0"]

1. e4 d5 2. exd5 Qxd5 3. Nc3 Qd6 4. d4 Nf6 5. Bd3 a6 6. Nge2 Nc6 7. Bf4 Qd8 8. Ne4 e5 9. dxe5 Ng4 10. Bc4 Qe7 11. N2c3 Ngxe5 12. Nd5 Qd8 13. Bg5 1-0